bitfinex-derivatives/quotes_ETHF0:USTF0_20250810
["timestamp","ask_amount","ask_price","bid_price","bid_amount"]
[1754862636016,1.26163935,4220.9,4219.3,0.2616]
[1754862636017,0.6135,4220.7,4220.3,1.5343]
[1754862636325,0.6024379,4221.9,4221.7,0.519]
[1754862636517,0.4165,4222.1,4221.7,0.925]
[1754862638424,0.2219,4222.7,4221.7,0.925]
[1754862638619,0.4165,4222.4,4221.7,0.925]
[1754862641927,0.4165,4222.4,4221.7,1.5343]
[1754862642127,0.4165,4222.1,4221.7,1.5343]
[1754862643017,0.87277581,4221.8,4221.7,1.1283]
[1754862643618,0.87277581,4221.8,4221.7,1.5343]
[1754862644218,0.87277581,4221.8,4221.7,1.1283]
[1754862645221,0.87277581,4221.8,4221.6,0.64309]
[1754862645222,0.00557581,4221.8,4221.6,0.64309]
[1754862645429,0.68897581,4221.8,4221.7,1.5343]
[1754862646722,0.87277581,4221.8,4221.7,1.5343]
[1754862647524,0.87277581,4221.8,4221.6,0.47369]
[1754862647829,0.8672,4221.7,4221.6,0.47369]
[1754862648129,0.8672,4221.7,4221.6,1.34049]
[1754862648627,1.0891,4221.7,4221.6,0.47369]
[1754862649221,0.00557581,4221.8,4221.7,0.2541]
[1754862649426,0.00557581,4221.8,4221.5,0.4737]
[1754862649427,0.8672,4221.6,4221.5,0.4737]
[1754862649629,0.8672,4221.6,4221.5,0.9927]
[1754862649930,0.8672,4221.6,4221.5,1.3405]
[1754862650725,0.4165,4221.2,4220.6,0.2541]
[1754862650930,0.8672,4221.0,4220.9,0.47377]
[1754862651133,0.8672,4221.0,4220.9,0.73867]
[1754862651323,0.8672,4221.0,4220.9,0.8668]
[1754862651925,0.8672,4221.0,4220.2,0.2541]
[1754862651926,0.8672,4220.3,4220.2,0.2541]
[1754862652225,0.4507,4220.1,4220.0,0.519]
[1754862652426,0.8672,4220.1,4220.0,0.8668]
[1754862653024,0.4739,4219.8,4219.3,0.47394]
[1754862653228,0.9246,4219.8,4219.7,0.3478]
[1754862653430,0.9246,4219.8,4219.7,0.8668]
[1754862653622,0.4507,4219.4,4219.3,1.16234]
[1754862653825,0.8672,4219.4,4219.3,1.34074]
[1754862654123,0.47397,4219.2,4219.1,0.6093]
[1754862654327,1.34117,4219.2,4219.1,0.8742]
[1754862654523,1.56307,4219.2,4219.1,0.2649]
[1754862654729,0.8672,4218.9,4218.8,1.5343]
[1754862655832,0.8672,4218.9,4218.8,0.519]
[1754862656032,1.0891,4218.9,4218.8,0.519]
[1754862656925,1.0891,4218.9,4218.8,0.2541]
[1754862657130,0.8672,4218.6,4218.5,0.8668]
[1754862658336,1.0891,4218.6,4218.5,0.8668]
[1754862660934,1.56313,4218.6,4218.5,0.6974]
[1754862661133,1.56313,4218.6,4215.5,2.11337751]
[1754862661134,1.18515,4218.4,4217.5,0.47415]
[1754862661335,0.4507,4217.7,4217.6,1.1283]
[1754862661533,0.8672,4217.7,4217.6,1.5343]
[1754862661840,1.34133,4217.7,4217.6,1.5343]
[1754862662332,1.07446,4217.5,4217.4,0.8668]
[1754862662531,0.8672,4217.5,4217.4,1.5343]
[1754862663639,0.8672,4217.5,4217.3,0.47417]
[1754862663839,0.8672,4217.4,4217.3,0.47417]
[1754862664239,0.4507,4217.2,4217.1,0.47419]
[1754862664435,1.0891,4217.2,4217.1,0.47419]
[1754862664740,0.6726,4217.2,4217.0,0.4742]
[1754862664937,0.6726,4217.2,4216.8,0.2541]
[1754862664938,0.6726,4217.1,4216.9,0.47421]
[1754862665139,0.6726,4217.1,4214.2,25.83980751]
[1754862665140,1.3414,4217.0,4216.6,0.47424]
[1754862665338,0.8672,4216.7,4216.6,1.31114]
[1754862665642,1.34144,4216.7,4216.0,0.4106]
[1754862665944,0.3867,4216.5,4216.4,0.74177]
[1754862666144,0.8245,4216.5,4216.4,0.99777]
[1754862666642,0.8245,4216.5,4216.4,1.36707]
[1754862667540,0.8245,4216.5,4216.4,0.47427]
[1754862667939,1.0461,4216.5,4216.4,0.47427]
[1754862668652,1.0461,4216.5,4216.4,0.5235]
[1754862670646,1.18533,4217.7,4216.2,0.47429]
[1754862670647,0.3867,4217.6,4217.0,0.9977]
[1754862670851,0.47418,4217.2,4217.1,1.5688]
[1754862671351,1.18527,4217.9,4217.2,0.2675]
[1754862671653,0.47411,4217.9,4217.8,1.5688]
[1754862673344,0.74061,4217.9,4217.8,1.5688]
[1754862673554,1.12731,4217.9,4217.8,1.5688]
[1754862674355,1.29861,4217.9,4217.8,1.5688]
[1754862674855,0.47406,4218.3,4218.2,0.6347]
[1754862675153,0.47406,4218.3,4218.2,1.5688]
[1754862675543,0.47408,4218.1,4217.8,0.4741]
[1754862675748,0.6532,4218.0,4217.9,0.3693]
[1754862675948,0.8245,4218.0,4217.9,1.0453]
[1754862676156,0.2665,4218.0,4217.9,1.0453]
[1754862676453,0.2665,4218.0,4217.9,1.5688]
[1754862676853,0.3867,4218.3,4218.2,1.5688]
[1754862677150,0.2665,4218.4,4218.3,1.5688]
[1754862677455,0.47401,4218.8,4218.7,0.6347]
[1754862677648,0.47398,4219.0,4218.8,1.1582]
[1754862677850,0.47398,4219.0,4218.9,1.5688]
[1754862679751,0.86068,4219.0,4218.9,1.5688]
[1754862681762,1.12718,4219.0,4218.9,1.5688]
[1754862682355,0.47398,4219.0,4218.9,1.5688]
[1754862683261,0.59997111,4219.5,4219.0,1.40808]
[1754862683460,0.47396,4219.3,4219.2,1.5688]
[1754862683660,0.98667111,4219.7,4219.2,1.5688]
[1754862683661,0.47394,4219.4,4219.3,1.5688]
[1754862684464,0.64524,4219.4,4219.3,1.5688]
[1754862684767,1.29844,4219.4,4219.3,1.5688]
[1754862686160,0.47395,4219.3,4219.2,0.5235]
[1754862686361,0.91175,4219.3,4219.2,0.6347]
[1754862686567,0.91175,4219.3,4219.2,1.1582]
[1754862687067,1.29845,4219.3,4219.2,1.1582]
[1754862687866,1.29845,4219.3,4219.2,1.5688]
[1754862689166,1.52075,4219.3,4219.2,0.8928]
[1754862691366,23.65975,4219.3,4219.2,0.5235]
[1754862691668,24.26403207,4219.3,4219.2,0.5235]
[1754862691871,0.47402,4218.6,4218.5,1.5688]
[1754862692369,1.29852,4218.6,4218.5,1.5688]
[1754862695174,0.47406,4218.3,4218.1,0.47407]
[1754862695472,1.29856,4218.3,4218.2,1.5688]
[1754862696972,1.29856,4218.3,4218.2,0.7065]
[1754862697171,1.29856,4218.3,4218.2,1.5244]
[1754862698068,1.1197,4218.0,4217.9,0.549]
[1754862698273,1.3024,4218.0,4217.9,1.5501]
[1754862699062,1.3024,4218.0,4217.7,0.47412]
[1754862699268,0.8283,4218.0,4217.9,0.9101]
[1754862699468,0.8283,4218.0,4217.9,1.1706]
[1754862699671,1.30245,4217.5,4217.4,1.5501]
[1754862705370,1.52415,4217.5,4217.4,0.9101]
[1754862705573,0.4469,4217.4,4217.3,0.6216]
[1754862705771,0.92106,4217.4,4217.3,0.9101]
[1754862706169,1.30246,4217.4,4217.3,0.9101]
[1754862706369,1.52416,4217.4,4217.3,0.9101]
[1754862707072,1.52416,4217.4,4217.3,1.1706]
[1754862707374,1.52416,4217.4,4217.3,1.5501]
[1754862707776,1.30246,4217.4,4217.3,0.549]
[1754862708074,1.30246,4217.4,4217.3,1.1706]
[1754862708269,1.30246,4217.4,4217.3,1.5501]
[1754862710872,1.52416,4217.4,4217.3,1.5501]
[1754862711375,23.34846,4217.4,4217.3,1.1706]
[1754862711578,23.34046,4217.4,4217.3,1.5501]
[1754862712076,1.30246,4217.4,4217.3,1.5501]
[1754862712279,23.34046,4217.4,4217.3,1.5501]
[1754862714278,23.56216,4217.4,4217.3,1.5501]
[1754862715177,1.52416,4217.4,4217.3,1.5501]
[1754862715381,23.54716,4217.4,4217.3,1.5501]
[1754862715572,23.53916,4217.4,4217.3,1.5501]
[1754862716474,0.47422,4216.8,4216.7,0.2704]
[1754862716776,23.31752,4216.8,4216.7,0.9101]
[1754862716979,23.31752,4216.8,4216.7,1.1706]
[1754862717277,23.31752,4216.8,4216.7,1.5501]
[1754862717478,23.31752,4216.8,4216.7,1.1706]
[1754862717883,23.53922,4216.8,4216.7,1.1706]
[1754862718881,23.53922,4216.8,4216.7,1.5501]
[1754862719680,23.31752,4216.8,4216.7,1.5501]
[1754862720068,23.53922,4216.8,4216.7,1.5501]
[1754862721073,23.53922,4216.8,4216.7,0.9101]
[1754862722177,23.53922,4216.8,4216.7,0.549]
[1754862723678,0.47435,4215.7,4215.6,1.2797]
[1754862723871,0.47435,4215.7,4215.6,1.5501]
[1754862725981,0.47434,4215.8,4215.6,1.5501]
[1754862726179,0.47434,4215.8,4215.7,1.542]
[1754862727383,1.32094,4215.8,4215.7,1.542]
[1754862727679,0.8466,4215.8,4215.7,1.542]
[1754862728074,1.94180756,4216.7,4215.7,1.542]
[1754862728075,1.18557,4216.8,4216.3,0.6202]
[1754862728378,0.90806,4217.4,4217.3,1.542]
[1754862728575,1.32069,4218.0,4217.9,0.6202]
[1754862728773,0.2223,4218.4,4217.9,0.6202]
[1754862728774,0.4127,4219.1,4218.2,0.539]
[1754862729081,0.4127,4219.1,4218.1,0.3828]
[1754862729082,0.47403,4218.6,4218.5,1.542]
[1754862729876,22.57201,4218.7,4218.5,1.542]
[1754862730073,0.47401,4218.7,4218.6,1.542]
[1754862731779,0.47398,4219.0,4218.6,1.542]
[1754862731979,0.47398,4219.0,4218.9,1.542]
[1754862732176,22.55298,4219.0,4218.9,1.542]
[1754862733685,22.80448,4219.0,4218.9,1.542]
[1754862733891,0.47396,4219.2,4218.9,1.542]
[1754862734188,22.068,4219.1,4219.0,1.542]
[1754862734883,0.47396,4219.2,4219.0,1.542]
[1754862735088,0.47396,4219.2,4219.1,1.1592]
[1754862735289,1.32056,4219.2,4219.1,1.1592]
[1754862735488,1.32056,4219.2,4219.1,1.542]
[1754862735888,0.47396,4219.2,4219.1,1.542]
[1754862736092,0.47392,4219.5,4219.4,1.542]
[1754862736289,0.47391,4219.6,4219.5,0.9218]
[1754862736593,0.4739,4219.7,4219.5,0.6202]
[1754862736892,0.47387,4220.0,4219.9,0.6202]
[1754862737083,0.47387,4220.0,4219.9,1.542]
[1754862737485,0.47385,4220.1,4219.9,1.542]
[1754862737690,1.18426,4221.5,4219.5,0.2711]
[1754862737889,0.88643,4221.2,4221.1,0.6202]
[1754862738089,1.32033,4221.2,4221.1,1.542]
[1754862738494,1.18419,4221.8,4221.1,1.542]
[1754862738495,0.47369,4221.6,4221.1,1.09394]
[1754862738686,1.40627,4222.6,4221.6,1.542]
[1754862738687,0.47368,4221.7,4221.6,1.542]
[1754862739088,0.47367,4221.8,4221.7,1.542]
[1754862739389,0.47366,4221.9,4221.8,1.542]
[1754862740194,0.72716,4221.9,4221.8,1.542]
[1754862742392,0.90756,4221.9,4221.8,1.542]
[1754862742592,1.32026,4221.9,4221.8,1.542]
[1754862743188,1.32026,4221.9,4221.8,0.539]
[1754862743889,1.32026,4221.9,4220.9,0.47376]
[1754862744094,0.47373,4221.2,4221.1,0.6202]
[1754862744290,0.47373,4221.2,4221.1,1.542]
[1754862744494,0.47372,4221.4,4221.3,0.6202]
[1754862744790,0.47372,4221.4,4221.3,1.542]
[1754862745588,0.47372,4221.4,4221.3,1.1592]
[1754862745589,1.32032,4221.4,4221.3,1.1592]
[1754862745793,1.32032,4221.4,4219.8,34.139]
[1754862745794,1.32034,4221.1,4221.0,0.6189]
[1754862746387,1.32034,4221.1,4221.0,0.89]
[1754862746589,1.18444,4220.8,4220.1,0.3828]
[1754862746789,0.8466,4220.7,4220.6,1.542]
[1754862747690,0.6662,4220.7,4220.6,1.542]
[1754862747997,0.47388,4219.9,4219.8,1.542]
[1754862750396,0.72738,4219.9,4219.8,1.542]
[1754862750596,0.47388,4219.9,4219.8,1.542]
[1754862752398,1.32048,4219.9,4219.8,1.1592]
[1754862752597,1.54208,4219.9,4219.8,1.1592]
[1754862752798,1.32048,4219.9,4219.8,1.1592]
[1754862752998,1.32048,4219.9,4219.8,1.542]
[1754862754391,1.32048,4219.9,4219.8,0.2711]
[1754862754701,1.32048,4219.9,4219.8,1.542]
[1754862757500,1.54228,4219.9,4219.8,1.1592]
[1754862758700,1.32048,4219.9,4219.8,1.5783]
[1754862759807,1.15223,4219.5,4219.4,1.5816]
[1754862760203,0.6783,4219.5,4219.4,1.5816]
[1754862760401,0.2802,4219.5,4219.4,1.5816]
[1754862760801,0.4739,4219.7,4219.4,1.08752]
[1754862761001,1.332,4219.7,4219.6,1.5816]
[1754862762705,1.35477592,4220.3,4220.2,0.1871]
[1754862762907,1.15563,4220.3,4220.2,0.9049]
[1754862763406,1.55373,4220.3,4220.2,0.9049]
[1754862763606,1.33193,4220.3,4220.2,0.9049]
[1754862763903,1.55373,4220.3,4220.2,0.9049]
[1754862764098,1.55373,4220.3,4220.2,1.1625]
[1754862764506,1.55373,4220.3,4220.2,0.2728]
[1754862764705,0.8581,4220.6,4220.5,0.6136]
[1754862764901,0.1798,4219.7,4219.6,1.0875]
[1754862765107,0.8581,4219.7,4219.6,1.0327]
[1754862765506,0.8581,4219.7,4219.6,1.5816]
[1754862775728,0.4739,4219.8,4219.6,2.0555]
[1754862775918,0.47388,4219.9,4219.8,2.05549]
[1754862776319,1.33198,4219.9,4219.8,1.5816]
[1754862783319,0.47389,4219.8,4219.6,0.4739]
[1754862783521,0.1798,4219.1,4219.0,1.77948]
[1754862783720,0.8581,4219.1,4219.0,2.05558]
[1754862783920,0.8581,4219.1,4219.0,1.44198]
[1754862784530,0.8581,4219.1,4219.0,1.02288]
[1754862784717,0.8581,4219.1,4218.6,23.53016]
[1754862784718,0.8581,4218.7,4218.6,2.11337751]
[1754862784919,1.40674,4219.1,4218.0,0.47409]
[1754862784920,0.46,4218.1,4218.0,0.47409]
[1754862785224,0.8581,4217.4,4217.3,0.2761]
[1754862785817,0.8581,4217.4,4217.3,0.5369]
[1754862786022,0.4423,4217.2,4216.9,0.47421]
[1754862786323,0.855,4217.1,4217.0,0.5279]
[1754862789118,0.855,4217.1,4217.0,1.1491]
[1754862789329,0.855,4217.1,4217.0,1.5322]
[1754862790826,0.4127,4219.0,4218.0,0.3831]
[1754862791031,1.32893,4219.4,4219.3,0.3581]
[1754862791235,1.32893,4219.4,4219.3,0.886]
[1754862791533,0.855,4219.4,4219.3,1.5322]
[1754862797639,1.32893,4219.4,4219.3,1.5322]
[1754862803040,0.47393,4219.4,4219.3,1.5322]
[1754862803846,1.32893,4219.4,4219.3,1.5322]
[1754862805038,6.0,4219.4,4217.5,2.11337751]
[1754862805343,1.67145759,4219.5,4217.9,0.6966]
[1754862805344,0.4423,4218.0,4217.9,0.6966]
[1754862805544,0.855,4218.0,4217.9,1.5322]
[1754862806443,0.855,4218.0,4217.9,0.886]
[1754862806751,1.0766,4218.0,4217.9,0.5279]
[1754862807139,1.0766,4218.0,4217.9,0.7006]
[1754862807344,1.0766,4218.0,4217.9,0.886]
[1754862807943,1.0766,4218.0,4217.9,0.2608]
[1754862808243,1.0766,4218.0,4217.6,0.2671]
[1754862808244,0.91647,4217.3,4217.2,0.6212]
[1754862808440,1.32917,4217.3,4217.2,1.0043]
[1754862808842,1.32917,4217.3,4217.2,1.5322]
[1754862811050,0.855,4217.6,4217.5,0.6212]
[1754862811253,0.47414,4217.6,4217.5,1.5322]
[1754862814554,23.25803,4218.5,4218.4,0.6212]
[1754862814754,23.25803,4218.5,4218.4,1.5322]
[1754862815353,1.32903,4218.5,4218.4,1.5322]
[1754862821650,1.32903,4218.5,4218.4,1.1491]
[1754862822360,1.32903,4218.5,4218.4,1.5664]
[1754862822654,1.33023,4218.5,4218.4,1.5664]
[1754862824846,0.47401,4218.7,4218.6,1.0395]
[1754862825049,0.47401,4218.7,4218.6,1.5769]
[1754862825356,0.474,4218.8,4218.6,0.6093]
[1754862825555,1.40742,4219.5,4218.6,0.6093]
[1754862825556,0.47398,4219.0,4218.9,0.1706]
[1754862825747,22.66958,4219.0,4218.9,0.6093]
[1754862825951,23.23388,4219.0,4218.9,1.5769]
[1754862826353,1.30808,4219.0,4218.9,1.5769]
[1754862826557,23.23408,4219.0,4218.9,1.5769]
[1754862826853,0.74258,4219.0,4218.9,1.5769]
[1754862827059,22.39997,4219.1,4218.9,0.6093]
[1754862827261,22.66857,4219.1,4219.0,1.5769]
[1754862827560,23.05727,4219.1,4219.0,1.5769]
[1754862828660,23.23287,4219.1,4219.0,1.5769]
[1754862829960,21.924,4219.1,4219.0,1.5769]
[1754862830353,22.1926,4219.1,4219.0,1.5769]
[1754862830553,22.7569,4219.1,4219.0,1.5769]
[1754862831654,1.30803,4219.5,4219.4,1.5769]
[1754862831963,23.23103,4219.5,4219.4,1.5769]
[1754862834358,0.2226,4219.7,4218.5,1.18506]
[1754862834359,0.8329,4219.7,4219.6,0.6093]
[1754862834666,23.83039234,4219.7,4219.6,1.5769]
[1754862834854,23.35769234,4219.7,4219.6,1.5769]
[1754862835567,22.7551,4219.7,4219.6,1.5769]
[1754862835965,0.8341,4219.7,4219.6,1.5769]
[1754862836165,22.7541,4219.7,4219.6,1.5769]
[1754862836468,34.60489,4219.8,4219.6,1.5769]
[1754862836762,21.92,4219.7,4219.6,1.5769]
[1754862836967,22.7529,4219.7,4219.6,1.5769]
[1754862837161,22.7541,4219.7,4219.6,1.5769]
[1754862838469,22.7541,4219.7,4219.6,2.05081]
[1754862839565,34.131,4219.8,4219.6,2.05081]
[1754862839768,0.00412643,4219.9,4219.8,0.6093]
[1754862839967,0.00412643,4219.9,4219.8,1.5769]
[1754862840271,21.92112643,4219.9,4219.8,1.5769]
[1754862841063,22.30982643,4219.9,4219.8,1.5769]
[1754862841570,22.57842643,4219.9,4219.8,1.5769]
[1754862842971,22.18972643,4219.9,4219.8,1.5769]
[1754862843467,0.00412643,4219.9,4219.8,1.5769]
[1754862843666,21.91812643,4219.9,4219.8,1.5769]
[1754862847569,22.35102643,4219.9,4219.8,0.2743]
[1754862847774,22.97372643,4219.9,4219.8,0.2743]
[1754862848073,22.75112643,4219.9,4219.8,0.2743]
[1754862848273,22.75112643,4219.9,4219.8,0.5284]
[1754862848464,22.75112643,4219.9,4219.8,1.126]
[1754862848669,22.75112643,4219.9,4219.8,1.5302]
[1754862848970,0.83712643,4219.9,4219.8,1.5302]
[1754862849173,0.83602643,4219.9,4219.8,1.5302]
[1754862850474,0.43592643,4219.9,4219.8,1.5302]
[1754862851984,0.43592643,4219.9,4219.8,1.126]
[1754862852684,0.83602643,4219.9,4219.8,1.5302]
[1754862852870,0.26032643,4219.9,4219.8,1.5302]
[1754862853073,0.00412643,4219.9,4219.8,1.5302]
[1754862853480,0.40422643,4219.9,4219.8,1.5302]
[1754862856183,0.66042643,4219.9,4219.8,1.5302]
[1754862858686,0.66042643,4219.9,4219.8,1.9266]
[1754862860982,0.84722643,4219.9,4219.8,1.9266]
[1754862861582,0.26032643,4219.9,4219.8,1.9266]
[1754862862086,0.84722643,4219.9,4219.8,1.9266]
[1754862863587,0.26032643,4219.9,4219.8,1.9266]
[1754862863981,0.66042643,4219.9,4219.8,1.9266]
[1754862864384,0.84722643,4219.9,4219.8,1.9266]
[1754862865177,0.8431,4219.9,4219.8,1.9266]
[1754862867691,0.84722643,4219.9,4219.8,1.9266]
[1754862870695,0.00412643,4219.9,4219.8,1.9266]
[1754862872509,0.26032643,4219.9,4219.8,1.9266]
[1754862872695,0.84722643,4219.9,4219.8,1.9266]
[1754862877102,0.00412643,4219.9,4219.8,1.9266]
[1754862877807,0.83252643,4219.9,4219.8,1.9266]
[1754862879309,0.00412643,4219.9,4219.8,1.9266]
[1754862880108,0.65062643,4219.9,4219.8,1.9266]
[1754862880510,0.83252643,4219.9,4219.8,1.9266]
[1754862885406,1.05422643,4219.9,4219.8,0.3964]
[1754862889411,0.00412643,4219.9,4219.8,0.3964]
[1754862889614,0.83252643,4219.9,4219.8,1.2905]
[1754862889816,0.83252643,4219.9,4219.8,1.9607]
[1754862890318,0.83252643,4219.9,4219.8,1.5555]
[1754862892018,0.26022643,4219.9,4219.8,1.9607]
[1754862892317,0.83252643,4219.9,4219.8,1.9607]
[1754862898721,1.05482643,4219.9,4219.8,1.9607]
[1754862899020,1.05482643,4219.9,4219.8,0.3964]
[1754862899420,1.52870643,4219.9,4219.8,0.3964]
[1754862900117,0.47394,4219.4,4219.1,0.47396]
[1754862900322,0.438,4218.9,4218.8,1.3636]
[1754862900622,0.438,4218.9,4218.8,0.718]
[1754862900623,0.6885,4218.9,4218.8,0.718]
[1754862900817,0.6885,4218.9,4218.8,0.5407]
[1754862901023,0.9108,4218.9,4218.8,0.2757]
[1754862901321,0.9108,4218.9,4218.5,0.265]
[1754862901322,0.9108,4218.6,4218.5,1.2948]
[1754862901710,1.38482,4218.6,4218.5,1.1591]
[1754862901922,0.6885,4218.3,4218.2,0.5407]
[1754862902817,0.438,4218.0,4217.9,1.09249]
[1754862903014,1.16259,4218.0,4217.9,0.6184]
[1754862903421,1.16259,4218.0,4217.9,1.1591]
[1754862903620,0.6885,4218.0,4217.9,1.5643]
[1754862904721,0.438,4218.0,4217.9,0.2757]
[1754862905022,0.438,4218.0,4217.9,1.1591]
[1754862905220,0.6885,4218.0,4217.9,1.5643]
[1754862905720,0.6885,4218.0,4217.8,0.47411]
[1754862905917,0.6962,4217.9,4217.8,0.47411]
[1754862906116,0.6962,4217.9,4217.8,0.99661]
[1754862906317,0.6962,4217.9,4217.8,2.01781]
[1754862907423,1.18498,4218.9,4218.0,0.47409]
[1754862907424,0.47406,4218.3,4218.0,0.47409]
[1754862907626,0.91976,4218.3,4218.2,0.6132]
[1754862907824,0.91976,4218.3,4218.2,1.5437]
[1754862908017,1.17026,4218.3,4218.2,1.5437]
[1754862908625,0.47406,4218.3,4218.2,1.5437]
[1754862908819,0.2505,4218.3,4218.2,1.5437]
[1754862909012,0.47405,4218.4,4218.2,1.5437]
[1754862909218,0.47405,4218.4,4218.3,0.9305]
[1754862909418,1.17025,4218.4,4218.3,1.5437]
[1754862909722,1.39255,4218.4,4218.3,1.5437]
[1754862911723,1.17025,4218.4,4218.3,1.5437]
[1754862912524,1.39255,4218.4,4218.3,1.5437]
[1754862912924,0.4457,4218.2,4218.1,0.47407]
[1754862913128,0.6962,4218.2,4218.1,1.60977]
[1754862913432,0.6962,4218.5,4218.4,1.5437]
[1754862914118,0.9185,4218.5,4218.4,1.5437]
[1754862914622,0.4266,4218.5,4218.4,1.5437]
[1754862915020,0.6962,4218.5,4218.4,1.5437]
[1754862915930,1.17031,4217.8,4217.7,1.5437]
[1754862916127,1.39261,4217.8,4216.7,1.18557]
[1754862916424,1.17042,4216.8,4216.7,0.6132]
[1754862916619,1.39272,4216.8,4216.7,0.6132]
[1754862917118,1.39272,4216.8,4216.7,1.5437]
[1754862920030,1.39272,4216.8,4216.7,1.1357]
[1754862922929,0.6962,4216.8,4216.7,1.5437]
[1754862923132,0.2223,4217.3,4216.7,2.01793]
[1754862923324,0.47421,4217.0,4216.7,0.6132]
[1754862923523,0.2223,4217.3,4216.0,1.18577]
[1754862923524,0.2505,4217.5,4216.8,0.47421]
[1754862923724,0.4266,4217.1,4217.0,1.5437]
[1754862923920,0.6962,4217.1,4217.0,1.5437]
[1754862926427,0.91987,4217.3,4217.2,0.6132]
[1754862926633,0.91987,4217.3,4217.2,1.5437]
[1754862927134,1.17037,4217.3,4217.2,1.5437]
[1754862929229,1.39267,4217.3,4217.2,1.5437]
[1754862930929,1.17037,4217.3,4217.2,1.5437]
[1754862931134,0.47417,4217.3,4217.2,1.5437]
[1754862931338,1.39267,4217.3,4217.2,1.5437]
[1754862931636,0.47417,4217.4,4217.3,1.5437]
[1754862931833,0.90077,4217.4,4217.3,1.5437]
[1754862932032,1.17037,4217.4,4217.3,1.5437]
[1754862932431,1.18515,4218.3,4216.6,1.1856]
[1754862932432,0.47409,4218.0,4217.7,1.14191]
[1754862932640,1.17022,4218.6,4218.5,1.5437]
[1754862932832,0.47402,4218.6,4218.5,1.5437]
[1754862933132,0.47397,4219.1,4219.0,1.0996]
[1754862933336,34.137,4219.4,4219.2,1.5437]
[1754862933534,0.75581316,4219.6,4219.3,1.5437]
[1754862933727,0.70032643,4219.9,4219.8,1.5437]
[1754862933930,0.00412643,4219.9,4219.8,1.5437]
[1754862943546,0.47386,4220.1,4219.8,0.6132]
[1754862943748,0.47386,4220.1,4220.0,1.5272]
[1754862944544,0.89986,4220.1,4220.0,1.5272]
[1754862946045,0.90413906,4220.1,4220.0,1.5272]
[1754862949049,0.47813906,4220.1,4220.0,1.5272]
[1754862949246,0.00427906,4220.1,4220.0,1.5272]
[1754862954548,0.25477906,4220.1,4220.0,1.5272]
[1754862956242,0.43027906,4220.1,4220.0,1.146]
[1754862956455,0.69357906,4220.1,4220.0,1.146]
[1754862956758,0.91587906,4220.1,4220.0,1.5272]
[1754862957347,0.00427906,4220.1,4220.0,2.00106]
[1754862957556,0.25477906,4220.1,4220.0,2.00106]
[1754862959358,0.43027906,4220.1,4220.0,2.00106]
[1754862960657,0.17977906,4220.1,4220.0,1.146]
[1754862960857,0.9116,4220.0,4219.9,0.47387]
[1754862961053,0.47398,4219.0,4218.1,1.1852]
[1754862961259,0.6893,4218.6,4218.5,1.46073]
[1754862961459,0.6893,4218.6,4218.5,2.00123]
[1754862963558,0.6893,4218.6,4218.5,1.5272]
[1754862964458,0.6893,4218.6,4218.5,0.5405]
[1754862964760,0.6893,4218.6,4218.5,1.5272]
[1754862967666,0.6893,4218.6,4218.5,2.00123]
[1754862968066,0.1755,4218.6,4218.5,2.00123]
[1754862970464,0.47397,4219.1,4218.8,0.47399]
[1754862970672,0.47398,4219.0,4218.9,1.08858]
[1754862970872,0.47397,4219.1,4218.9,1.99328]
[1754862971072,0.47397,4219.1,4219.0,1.5193]
[1754862971272,0.65347,4219.1,4219.0,1.5193]
[1754862971471,1.16877,4219.1,4219.0,1.5193]
[1754862971674,1.39107,4219.1,4219.0,1.5193]
[1754862972170,0.9171,4219.1,4219.0,1.5193]
[1754862973668,0.6948,4219.1,4219.0,1.5193]
[1754862976370,0.72453,4219.5,4219.1,0.47396]
[1754862976572,0.91813,4219.5,4219.4,1.1289]
[1754862977276,1.16873,4219.5,4219.4,1.5193]
[1754862977469,0.6948,4219.5,4219.4,1.5193]
[1754862977670,0.2506,4219.6,4219.5,1.5193]
[1754862977865,0.2506,4219.6,4219.5,1.99322]
[1754862978075,0.4301,4219.6,4219.5,1.99322]
[1754862978871,1.16871,4219.6,4219.5,1.5193]
[1754862979276,0.6948,4219.6,4219.5,1.5193]
[1754862981378,0.9171,4219.6,4219.5,1.5193]
[1754862982275,0.6948,4219.6,4219.5,1.5193]
[1754862986682,0.9171,4219.6,4219.5,1.5193]
[1754862986983,0.6948,4219.6,4219.5,1.5193]
[1754862992684,1.16871,4219.6,4219.5,1.5193]
[1754862992876,0.65343,4219.5,4219.4,0.6146]
[1754862993082,0.6948,4219.5,4219.4,1.5193]
[1754862994287,0.9171,4219.5,4219.4,0.2596]
[1754862994883,0.9171,4219.5,4219.4,1.5193]
[1754862996483,0.1703,4219.5,4219.4,0.6146]
[1754862996684,0.6764,4219.5,4219.4,0.6146]
[1754862996985,0.8991,4219.5,4219.4,0.6146]
[1754862997181,0.8991,4219.5,4219.4,1.5339]
[1754862997985,0.8991,4219.5,4218.5,0.5294]
[1754862997986,0.47401,4218.7,4218.5,0.5294]
[1754862998186,0.6752,4218.2,4218.1,2.01747]
[1754862998490,0.6752,4218.2,4218.1,1.5434]
[1754862998491,0.6764,4218.2,4218.1,1.5434]
[1754862998884,1.15047,4218.2,4218.1,1.5434]
[1754862999790,0.6764,4218.2,4218.1,1.5434]
[1754863000491,0.8991,4218.2,4218.1,1.5434]
[1754863001891,1.14925,4218.4,4218.3,1.5434]
[1754863002090,1.15045,4218.4,4218.3,1.5434]